[Event "Najdorf Memorial-A 2022"]
[Site "Warsaw"]
[Date "2022.07.15"]
[Round "7.4"]
[White "Mickiewicz, Piotr"]
[Black "Chomczyk, Marek"]
[Result "0-1"]
[ECO "B38"]
[WhiteElo "2284"]
[BlackElo "2290"]
[Annotator "ChessBase"]
[PlyCount "98"]
[EventDate "2022.07.09"]
[EventType "swiss"]
[EventCountry "POL"]
[SourceTitle "playchess.com"]
[Source "ChessBase"]
[SourceQuality "1"]
[TimeControl "40/5400+30:1800+30"]

1. c4 {[%emt 0:18:46]} c5 {[%emt 0:00:02]} 2. Nf3 {[%emt 0:01:01]} Nc6 {[%emt 0:00:09]} 3. d4 {[%emt 0:01:40]} cxd4 {[%emt 0:00:05]} 4. Nxd4 {[%emt 0:00:05]} g6 {[%emt 0:00:11]} 5. e4 {[%emt 0:04:21]} Bg7 {[%emt 0:00:05]} 6. Be3 {[%emt 0:01:06]} Qb6 {[%emt 0:00:11]} 7. Nb3 {[%emt 0:10:43]} Qd8 {[%emt 0:00:22]} 8. Qd2 {[%emt 0:00:16]} Nf6 {[%emt 0:07:13]} 9. f3 {[%emt 0:00:29]} d6 {[%emt 0:00:34]} 10. Nc3 {[%emt 0:04:48]} O-O {[%emt 0:17:32]} 11. Be2 {[%emt 0:00:43]} a5 {[%emt 0:00:08]} 12. O-O {[%emt 0:13:30]} Be6 {[%emt 0:04:10]} 13. Na4 {[%emt 0:19:33]} Nd7 {[%emt 0:02:23]} 14. Rfd1 {[%emt 0:00:57]} b6 {[%emt 0:06:16]} 15. Nc3 {[%emt 0:05:01]} Nc5 {[%emt 0:03:00]} 16. Nd4 {[%emt 0:01:40]} Nxd4 {[%emt 0:06:01]} 17. Bxd4 {[%emt 0:00:02]} Bxd4+ {[%emt 0:00:22]} 18. Qxd4 {[%emt 0:00:02]} a4 {[%emt 0:00:53]} 19. Rab1 {[%emt 0:00:59]} Qc7 {[%emt 0:03:38]} 20. b4 {[%emt 0:00:44]} axb3 {[%emt 0:00:09]} 21. axb3 {[%emt 0:00:02]} Rfc8 {[%emt 0:00:25]} 22. f4 {[%emt 0:05:18]} Nd7 {[%emt 0:18:47]} 23. f5 {[%emt 0:03:57]} gxf5 {[%emt 0:00:06]} 24. exf5 {[%emt 0:00:02]} Bxf5 {[%emt 0:00:08]} 25. Nd5 {[%emt 0:00:02]} Qd8 {[%emt 0:00:12]} 26. Bd3 {[%emt 0:04:38]} Bg6 {[%emt 0:01:17]} 27. Qh4 {[%emt 0:01:06]} e6 {[%emt 0:10:13]} 28. Ne7+ {[%emt 0:00:06]} Kf8 {[%emt 0:00:06]} 29. Nxg6+ {[%emt 0:00:04]} hxg6 {[%emt 0:00:22]} 30. Qh6+ {[%emt 0:00:08]} Ke7 {[%emt 0:05:03]} 31. Bxg6 {[%emt 0:00:23]} Qh8 {[%emt 0:00:31]} 32. Qf4 {[%emt 0:01:26]} Ne5 {[%emt 0:00:05]} 33. Be4 {[%emt 0:00:27]} Ra2 {[%emt 0:00:17]} 34. Rd2 {[%emt 0:02:16]} Rxd2 {[%emt 0:00:50]} 35. Qxd2 {[%emt 0:00:02]} Qh4 {[%emt 0:00:08]} 36. Re1 {[%emt 0:01:29]} Rh8 {[%emt 0:00:02]} 37. h3 {[%emt 0:00:19]} Rg8 {[%emt 0:00:04]} 38. Qe3 {[%emt 0:00:47]} f5 {[%emt 0:02:18]} 39. Bb7 {[%emt 0:00:25]} f4 {[%emt 0:00:11]} 40. Qd2 {[%emt 0:00:00]} f3 {[%emt 0:00:00]} 41. Rxe5 {[%emt 0:06:36]} Rxg2+ {[%emt 0:05:35]} 42. Qxg2 {[%emt 0:00:03]} fxg2 {[%emt 0:00:11]} 43. Rb5 {[%emt 0:00:18]} Qxh3 {[%emt 0:00:07]} 44. Bxg2 {[%emt 0:00:08]} Qe3+ {[%emt 0:00:02]} 45. Kh2 {[%emt 0:01:51]} e5 {[%emt 0:01:32]} 46. Rb4 {[%emt 0:12:46]} Qf4+ {[%emt 0:00:51]} 47. Kh3 {[%emt 0:02:42]} Kf6 {[%emt 0:00:31]} 48. Bd5 {[%emt 0:04:04]} Qe3+ {[%emt 0:00:24]} 49. Kg4 {[%emt 0:00:09]} Qd4+ {[%emt 0:00:03]} 0-1

[Event "Najdorf Memorial-A 2022"]
[Site "Warsaw"]
[Date "2022.07.15"]
[Round "7.5"]
[White "Sriram, Jha"]
[Black "Markiewicz, Jerzy"]
[Result "1-0"]
[ECO "D31"]
[WhiteElo "2361"]
[BlackElo "2205"]
[Annotator "ChessBase"]
[PlyCount "131"]
[EventDate "2022.07.09"]
[EventType "swiss"]
[EventCountry "POL"]
[SourceTitle "playchess.com"]
[Source "ChessBase"]
[SourceQuality "1"]
[TimeControl "40/5400+30:1800+30"]

1. d4 {[%emt 0:00:23]} d5 {[%emt 0:00:21]} 2. c4 {[%emt 0:00:35]} e6 {[%emt 0:00:15]} 3. Nc3 {[%emt 0:00:11]} a6 {[%emt 0:00:09]} 4. cxd5 {[%emt 0:03:00]} exd5 {[%emt 0:00:08]} 5. Nf3 {[%emt 0:00:27]} c6 {[%emt 0:01:20]} 6. Bf4 {[%emt 0:11:27]} Nf6 {[%emt 0:00:52]} 7. e3 {[%emt 0:00:29]} Bd6 {[%emt 0:00:09]} 8. Bxd6 {[%emt 0:01:42]} Qxd6 {[%emt 0:00:36]} 9. Qc2 {[%emt 0:02:44]} O-O {[%emt 0:08:59]} 10. Bd3 {[%emt 0:00:52]} c5 {[%emt 0:00:35]} 11. dxc5 {[%emt 0:01:46]} Qxc5 {[%emt 0:00:06]} 12. Rd1 {[%emt 0:15:24]} Qa5 {[%emt 0:09:06]} 13. O-O {[%emt 0:12:02]} Nc6 {[%emt 0:04:22]} 14. Qb3 {[%emt 0:09:15]} Qb4 {[%emt 0:08:59]} 15. Nxd5 {[%emt 0:02:01]} Nxd5 {[%emt 0:00:08]} 16. Qxd5 {[%emt 0:00:01]} Be6 {[%emt 0:05:16]} 17. Qh5 {[%emt 0:07:29]} g6 {[%emt 0:07:05]} 18. Qh6 {[%emt 0:00:44]} Qxb2 {[%emt 0:00:08]} 19. Rb1 {[%emt 0:00:36]} Qg7 {[%emt 0:00:30]} 20. Qxg7+ {[%emt 0:00:11]} Kxg7 {[%emt 0:00:09]} 21. Rxb7 {[%emt 0:00:02]} Bxa2 {[%emt 0:00:20]} 22. Rb6 {[%emt 0:03:06]} Nb8 {[%emt 0:01:49]} 23. Ra1 {[%emt 0:01:36]} Bd5 {[%emt 0:02:03]} 24. e4 {[%emt 0:07:27]} Be6 {[%emt 0:04:05]} 25. Nd4 {[%emt 0:01:26]} Bc8 {[%emt 0:00:33]} 26. Bc4 {[%emt 0:01:53]} Nd7 {[%emt 0:01:00]} 27. Rd6 {[%emt 0:00:07]} Ra7 {[%emt 0:05:30]} 28. f3 {[%emt 0:01:32]} Nb8 {[%emt 0:03:32]} 29. Rb1 {[%emt 0:02:52]} Rd7 {[%emt 0:01:31]} 30. Rxd7 {[%emt 0:03:45]} Nxd7 {[%emt 0:00:10]} 31. Nc6 {[%emt 0:00:16]} Re8 {[%emt 0:00:23]} 32. Ra1 {[%emt 0:02:45]} Bb7 {[%emt 0:02:48]} 33. Na5 {[%emt 0:00:27]} Bc8 {[%emt 0:00:22]} 34. Nb3 {[%emt 0:00:25]} Nb8 {[%emt 0:00:24]} 35. Rc1 {[%emt 0:01:10]} Be6 {[%emt 0:00:24]} 36. Nc5 {[%emt 0:02:21]} Bxc4 {[%emt 0:00:30]} 37. Rxc4 {[%emt 0:00:01]} Rd8 {[%emt 0:02:20]} 38. Ra4 {[%emt 0:01:51]} Rd6 {[%emt 0:00:21]} 39. Kf2 {[%emt 0:00:22]} Rc6 {[%emt 0:01:58]} 40. Ra5 {[%emt 0:00:00]} Rb6 {[%emt 0:00:00]} 41. Ra2 {[%emt 0:01:30]} Rc6 {[%emt 0:00:15]} 42. Nd3 {[%emt 0:00:24]} Rb6 {[%emt 0:02:13]} 43. Nf4 {[%emt 0:01:37]} Rb5 {[%emt 0:02:49]} 44. Ke3 {[%emt 0:01:20]} a5 {[%emt 0:02:49]} 45. Kd3 {[%emt 0:03:15]} Nd7 {[%emt 0:01:46]} 46. Kc4 {[%emt 0:02:13]} Rc5+ {[%emt 0:00:43]} 47. Kd4 {[%emt 0:00:06]} Rb5 {[%emt 0:00:08]} 48. Nd5 {[%emt 0:00:44]} Nb6 {[%emt 0:03:19]} 49. Nxb6 {[%emt 0:08:41]} Rxb6 {[%emt 0:00:06]} 50. Rxa5 {[%emt 0:00:03]} Rb2 {[%emt 0:00:05]} 51. Rg5 {[%emt 0:00:08]} f6 {[%emt 0:00:17]} 52. Rg3 {[%emt 0:00:05]} g5 {[%emt 0:00:22]} 53. e5 {[%emt 0:06:04]} fxe5+ {[%emt 0:01:09]} 54. Kc3 {[%emt 0:00:01]} Re2 {[%emt 0:08:57]} 55. Kd3 {[%emt 0:01:33]} Ra2 {[%emt 0:00:05]} 56. Rxg5+ {[%emt 0:00:05]} Kf6 {[%emt 0:00:05]} 57. Rg8 {[%emt 0:00:16]} h5 {[%emt 0:00:14]} 58. h4 {[%emt 0:04:11]} Ra4 {[%emt 0:04:39]} 59. g3 {[%emt 0:01:24]} Ra2 {[%emt 0:01:49]} 60. Rg5 {[%emt 0:00:23]} Rg2 {[%emt 0:00:09]} 61. Ke3 {[%emt 0:00:43]} Ke6 {[%emt 0:00:09]} 62. f4 {[%emt 0:01:30]} exf4+ {[%emt 0:00:08]} 63. Kxf4 {[%emt 0:00:01]} Rf2+ {[%emt 0:00:18]} 64. Ke4 {[%emt 0:00:04]} Re2+ {[%emt 0:00:13]} 65. Kf3 {[%emt 0:00:07]} Re5 {[%emt 0:00:48]} 66. Kf4 {[%emt 0:00:04]} 1-0

[Event "Najdorf Memorial-A 2022"]
[Site "Warsaw"]
[Date "2022.07.15"]
[Round "7.6"]
[White "Golubka, Petro"]
[Black "Ratajczak, Hubert"]
[Result "1/2-1/2"]
[ECO "A05"]
[WhiteElo "2378"]
[BlackElo "1943"]
[Annotator "ChessBase"]
[PlyCount "113"]
[EventDate "2022.07.09"]
[EventType "swiss"]
[EventCountry "POL"]
[SourceTitle "playchess.com"]
[Source "ChessBase"]
[SourceQuality "1"]
[TimeControl "40/5400+30:1800+30"]

1. Nf3 {[%emt 0:13:17]} Nf6 {[%emt 0:00:09]} 2. g3 {[%emt 0:00:06]} g6 {[%emt 0:00:06]} 3. Bg2 {[%emt 0:00:04]} Bg7 {[%emt 0:00:26]} 4. O-O {[%emt 0:00:09]} O-O {[%emt 0:00:16]} 5. d4 {[%emt 0:00:08]} d6 {[%emt 0:00:12]} 6. Nc3 {[%emt 0:00:04]} Nbd7 {[%emt 0:06:03]} 7. e4 {[%emt 0:00:18]} e5 8. Re1 c6 {[%emt 0:06:34]} 9. a4 {[%emt 0:00:29]} Qc7 {[%emt 0:03:23]} 10. a5 {[%emt 0:00:21]} Rd8 {[%emt 0:01:25]} 11. h3 {[%emt 0:01:29]} h6 {[%emt 0:03:55]} 12. Be3 {[%emt 0:01:35]} Nf8 {[%emt 0:01:14]} 13. Qd2 {[%emt 0:01:21]} Kh7 {[%emt 0:00:01]} 14. Red1 {[%emt 0:09:30]} Be6 {[%emt 0:01:50]} 15. Qc1 {[%emt 0:10:10]} d5 {[%emt 0:09:39]} 16. exd5 {[%emt 0:07:19]} exd4 {[%emt 0:01:55]} 17. Nxd4 {[%emt 0:21:23]} Bxd5 {[%emt 0:00:35]} 18. Ndb5 {[%emt 0:02:18]} Qe7 {[%emt 0:11:31]} 19. Nxd5 {[%emt 0:05:04]} Nxd5 {[%emt 0:00:22]} 20. Bd4 {[%emt 0:03:46]} Ne6 {[%emt 0:05:41]} 21. Bxg7 {[%emt 0:00:15]} Kxg7 {[%emt 0:00:10]} 22. a6 {[%emt 0:00:40]} bxa6 {[%emt 0:02:36]} 23. Nd4 {[%emt 0:00:39]} Nxd4 {[%emt 0:01:29]} 24. Rxd4 {[%emt 0:00:02]} Nb4 {[%emt 0:12:14]} 25. Rc4 {[%emt 0:02:23]} Rac8 {[%emt 0:01:27]} 26. Bf1 {[%emt 0:00:57]} c5 {[%emt 0:02:22]} 27. Qf4 {[%emt 0:00:30]} Rc6 {[%emt 0:03:03]} 28. Re4 {[%emt 0:00:24]} Re6 {[%emt 0:06:50]} 29. Rxe6 {[%emt 0:03:09]} Qxe6 {[%emt 0:00:02]} 30. Bc4 {[%emt 0:00:42]} Qe7 {[%emt 0:03:58]} 31. Bb3 {[%emt 0:03:31]} Rd6 {[%emt 0:01:10]} 32. h4 {[%emt 0:02:46]} Qf6 {[%emt 0:03:50]} 33. Qc4 {[%emt 0:01:59]} Qf5 {[%emt 0:01:22]} 34. Qc3+ {[%emt 0:03:14]} Rf6 {[%emt 0:00:48]} 35. f4 {[%emt 0:01:03]} Nc6 {[%emt 0:03:35]} 36. Rxa6 {[%emt 0:01:30]} Nd4 {[%emt 0:00:01]} 37. Rxf6 {[%emt 0:00:06]} Kxf6 {[%emt 0:00:28]} 38. Kf2 {[%emt 0:01:52]} Qh3 {[%emt 0:03:29]} 39. Bd5 {[%emt 0:00:35]} Qf5 {[%emt 0:00:54]} 40. Qxc5 {[%emt 0:00:00]} Qxc2+ {[%emt 0:00:00]} 41. Qxc2 {[%emt 0:00:20]} Nxc2 {[%emt 0:00:20]} 42. g4 {[%emt 0:00:31]} Ke7 {[%emt 0:05:27]} 43. Be4 {[%emt 0:02:41]} Nd4 {[%emt 0:01:17]} 44. Ke3 {[%emt 0:00:10]} Nb5 45. Bd3 {[%emt 0:02:50]} Nc7 {[%emt 0:08:21]} 46. Bc4 {[%emt 0:00:41]} f6 {[%emt 0:02:20]} 47. Ke4 {[%emt 0:02:24]} Ne6 {[%emt 0:05:24]} 48. f5 {[%emt 0:07:14]} gxf5+ {[%emt 0:06:39]} 49. Kxf5 {[%emt 0:01:11]} Nd4+ {[%emt 0:00:10]} 50. Kg6 {[%emt 0:06:37]} Nf3 {[%emt 0:00:05]} 51. Kh5 {[%emt 0:00:18]} f5 52. gxf5 {[%emt 0:02:23]} Kf6 {[%emt 0:06:42]} 53. Be2 {[%emt 0:01:35]} Nxh4 {[%emt 0:00:21]} 54. Kxh4 {[%emt 0:00:10]} Kxf5 55. Kh5 {[%emt 0:01:04]} Ke4 {[%emt 0:02:11]} 56. b3 {[%emt 0:02:33]} Kd4 {[%emt 0:00:12]} 57. Bb5 {[%emt 0:00:02]} 1/2-1/2

[Event "Najdorf Memorial-A 2022"]
[Site "Warsaw"]
[Date "2022.07.15"]
[Round "7.8"]
[White "Raczek, Krzysztof"]
[Black "Fiszer, Bartosz"]
[Result "0-1"]
[ECO "A05"]
[WhiteElo "2114"]
[BlackElo "2228"]
[Annotator "ChessBase"]
[PlyCount "120"]
[EventDate "2022.07.09"]
[EventType "swiss"]
[EventCountry "POL"]
[SourceTitle "playchess.com"]
[Source "ChessBase"]
[SourceQuality "1"]
[TimeControl "40/5400+30:1800+30"]

1. Nf3 {[%emt 0:00:30]} Nf6 {[%emt 0:01:39]} 2. c4 {[%emt 0:00:11]} g6 {[%emt 0:00:02]} 3. d4 {[%emt 0:00:05]} Bg7 {[%emt 0:00:04]} 4. Nc3 {[%emt 0:00:04]} O-O {[%emt 0:00:09]} 5. g3 {[%emt 0:00:03]} c6 {[%emt 0:00:26]} 6. Bg2 {[%emt 0:02:55]} d5 {[%emt 0:00:02]} 7. Ne5 {[%emt 0:02:56]} Nbd7 {[%emt 0:03:04]} 8. O-O {[%emt 0:03:35]} Nxe5 {[%emt 0:05:50]} 9. dxe5 {[%emt 0:00:05]} Ng4 {[%emt 0:00:38]} 10. cxd5 {[%emt 0:00:42]} Nxe5 {[%emt 0:00:14]} 11. Bf4 {[%emt 0:00:59]} Qb6 {[%emt 0:04:50]} 12. Qb3 {[%emt 0:01:23]} Bf5 {[%emt 0:03:38]} 13. Rac1 {[%emt 0:02:41]} Rfd8 {[%emt 0:13:14]} 14. Rfd1 {[%emt 0:16:31]} Qxb3 {[%emt 0:03:53]} 15. axb3 {[%emt 0:00:50]} cxd5 {[%emt 0:00:12]} 16. Bxd5 {[%emt 0:02:21]} Nc6 {[%emt 0:01:05]} 17. Be3 {[%emt 0:14:56]} Rd7 {[%emt 0:15:54]} 18. Bxc6 {[%emt 0:03:51]} bxc6 {[%emt 0:00:02]} 19. Rxd7 {[%emt 0:00:55]} Bxd7 {[%emt 0:00:01]} 20. Rd1 {[%emt 0:00:38]} Be6 {[%emt 0:01:34]} 21. b4 {[%emt 0:00:31]} a6 {[%emt 0:19:57]} 22. f3 {[%emt 0:01:42]} f5 {[%emt 0:02:11]} 23. Bd4 {[%emt 0:00:52]} Bb3 {[%emt 0:01:16]} 24. Rd2 {[%emt 0:01:34]} Rd8 {[%emt 0:01:34]} 25. Be3 {[%emt 0:00:37]} Rxd2 {[%emt 0:00:09]} 26. Bxd2 {[%emt 0:00:05]} Bd4+ {[%emt 0:00:59]} 27. Kf1 {[%emt 0:01:40]} Kf7 {[%emt 0:00:12]} 28. Be1 {[%emt 0:02:49]} Be3 {[%emt 0:02:58]} 29. Nb1 {[%emt 0:00:41]} Ba2 {[%emt 0:00:51]} 30. Bd2 {[%emt 0:01:21]} Bb6 {[%emt 0:01:32]} 31. Nc3 {[%emt 0:00:24]} Bc4 {[%emt 0:00:03]} 32. Be1 {[%emt 0:03:03]} Be3 {[%emt 0:00:16]} 33. Nb1 {[%emt 0:01:21]} e5 {[%emt 0:00:19]} 34. Bd2 {[%emt 0:01:39]} Bb6 {[%emt 0:00:27]} 35. Nc3 {[%emt 0:01:33]} Bd4 {[%emt 0:01:00]} 36. Na4 {[%emt 0:03:19]} Bb5 {[%emt 0:01:54]} 37. Nc3 {[%emt 0:02:58]} Ke6 {[%emt 0:03:33]} 38. b3 {[%emt 0:00:27]} g5 {[%emt 0:05:08]} 39. Nxb5 {[%emt 0:01:40]} cxb5 {[%emt 0:00:15]} 40. e4 {[%emt 0:00:00]} g4 {[%emt 0:00:00]} 41. Kg2 {[%emt 0:00:45]} h5 {[%emt 0:01:48]} 42. h3 {[%emt 0:00:43]} Kf6 {[%emt 0:03:36]} 43. hxg4 {[%emt 0:00:37]} hxg4 {[%emt 0:00:13]} 44. Be1 {[%emt 0:00:18]} Kg5 {[%emt 0:01:17]} 45. Bd2+ {[%emt 0:02:41]} Kg6 {[%emt 0:05:15]} 46. Be1 {[%emt 0:00:31]} Kh5 {[%emt 0:19:32]} 47. exf5 {[%emt 0:24:37]} Kg5 {[%emt 0:00:09]} 48. fxg4 {[%emt 0:00:03]} e4 {[%emt 0:00:15]} 49. Bf2 {[%emt 0:00:33]} e3 {[%emt 0:04:35]} 50. Be1 {[%emt 0:07:52]} Kxg4 {[%emt 0:00:29]} 51. Kh2 {[%emt 0:00:14]} Kf3 {[%emt 0:01:53]} 52. g4 {[%emt 0:00:27]} Kxg4 {[%emt 0:00:04]} 53. Kg2 {[%emt 0:00:20]} Be5 {[%emt 0:00:40]} 54. Kg1 {[%emt 0:01:23]} Kf3 {[%emt 0:00:18]} 55. Bh4 {[%emt 0:00:45]} e2 {[%emt 0:00:12]} 56. Be1 {[%emt 0:00:27]} Bg3 {[%emt 0:00:18]} 57. f6 {[%emt 0:00:28]} Bxe1 {[%emt 0:00:09]} 58. f7 {[%emt 0:00:03]} Bxb4 {[%emt 0:00:13]} 59. Kh2 {[%emt 0:00:27]} e1=Q {[%emt 0:00:12]} 60. f8=R+ {[%emt 0:00:21]} Bxf8 {[%emt 0:00:13]} 0-1

[Event "Najdorf Memorial-A 2022"]
[Site "Warsaw"]
[Date "2022.07.15"]
[Round "7.9"]
[White "Backiel, Hubert"]
[Black "Padalka, Artem"]
[Result "1-0"]
[ECO "E70"]
[WhiteElo "2045"]
[BlackElo "2204"]
[Annotator "ChessBase"]
[PlyCount "127"]
[EventDate "2022.07.09"]
[EventType "swiss"]
[EventCountry "POL"]
[SourceTitle "playchess.com"]
[Source "ChessBase"]
[SourceQuality "1"]
[TimeControl "40/5400+30:1800+30"]

1. d4 {[%emt 0:00:04]} Nf6 {[%emt 0:25:39]} 2. c4 {[%emt 0:00:09]} g6 {[%emt 0:00:25]} 3. Nc3 {[%emt 0:00:08]} Bg7 {[%emt 0:00:02]} 4. e4 {[%emt 0:00:08]} O-O {[%emt 0:00:10]} 5. Be3 {[%emt 0:00:06]} d6 {[%emt 0:00:13]} 6. h3 {[%emt 0:00:04]} c5 {[%emt 0:03:19]} 7. Nf3 {[%emt 0:01:20]} cxd4 {[%emt 0:03:07]} 8. Nxd4 {[%emt 0:00:16]} Nc6 {[%emt 0:00:33]} 9. Be2 {[%emt 0:02:08]} Bd7 {[%emt 0:01:54]} 10. O-O {[%emt 0:02:12]} Nxd4 {[%emt 0:01:48]} 11. Bxd4 {[%emt 0:00:23]} Bc6 {[%emt 0:00:01]} 12. Qd3 {[%emt 0:11:04]} a5 {[%emt 0:02:47]} 13. Rad1 {[%emt 0:16:54]} Nd7 {[%emt 0:09:46]} 14. Bxg7 {[%emt 0:06:47]} Kxg7 {[%emt 0:00:41]} 15. Kh1 {[%emt 0:02:02]} Qb6 {[%emt 0:03:37]} 16. Rd2 {[%emt 0:14:27]} Ne5 {[%emt 0:04:08]} 17. Nd5 {[%emt 0:02:26]} Bxd5 {[%emt 0:12:51]} 18. Qxd5 {[%emt 0:00:21]} Nc6 {[%emt 0:09:30]} 19. a3 {[%emt 0:08:01]} a4 {[%emt 0:01:19]} 20. f4 {[%emt 0:01:51]} Ra5 {[%emt 0:00:36]} 21. Qd3 {[%emt 0:00:03]} Rc5 {[%emt 0:04:17]} 22. Rfd1 {[%emt 0:07:31]} f6 {[%emt 0:03:26]} 23. Qc3 {[%emt 0:03:38]} Rc8 {[%emt 0:00:50]} 24. Rd5 {[%emt 0:03:27]} Na5 {[%emt 0:00:51]} 25. e5 {[%emt 0:02:28]} Nxc4 {[%emt 0:02:58]} 26. exf6+ {[%emt 0:00:29]} exf6 {[%emt 0:00:09]} 27. Bxc4 {[%emt 0:01:09]} Rxc4 {[%emt 0:00:12]} 28. Qe1 {[%emt 0:00:34]} R8c7 {[%emt 0:06:32]} 29. Rxd6 {[%emt 0:01:09]} Qb5 {[%emt 0:00:01]} 30. Qe6 {[%emt 0:08:20]} Qf5 {[%emt 0:00:02]} 31. Rd7+ {[%emt 0:01:10]} Kh6 {[%emt 0:00:09]} 32. Qxf5 {[%emt 0:00:49]} gxf5 {[%emt 0:00:02]} 33. Rxc7 {[%emt 0:00:20]} Rxc7 {[%emt 0:00:01]} 34. Rd4 {[%emt 0:01:26]} Rc2 {[%emt 0:03:56]} 35. Rb4 {[%emt 0:00:52]} Kg6 {[%emt 0:00:13]} 36. Kh2 {[%emt 0:00:56]} h5 {[%emt 0:00:33]} 37. Rxb7 {[%emt 0:00:46]} Re2 {[%emt 0:00:48]} 38. Kg3 {[%emt 0:01:26]} Re3+ {[%emt 0:00:48]} 39. Kf2 {[%emt 0:00:14]} Rd3 {[%emt 0:00:23]} 40. Ke2 {[%emt 0:00:00]} Rg3 {[%emt 0:00:00]} 41. Kf2 {[%emt 0:01:25]} h4 {[%emt 0:00:20]} 42. Rb4 {[%emt 0:03:04]} Rd3 {[%emt 0:00:17]} 43. Ke2 {[%emt 0:00:16]} Rg3 {[%emt 0:00:07]} 44. Kf1 {[%emt 0:00:14]} Rd3 {[%emt 0:08:36]} 45. Rxa4 {[%emt 0:00:55]} Rd2 {[%emt 0:03:52]} 46. Rb4 {[%emt 0:01:26]} Kf7 {[%emt 0:00:10]} 47. a4 {[%emt 0:02:23]} Rd1+ {[%emt 0:01:40]} 48. Ke2 {[%emt 0:00:50]} Rg1 {[%emt 0:00:09]} 49. Kf2 {[%emt 0:00:19]} Ra1 {[%emt 0:00:05]} 50. b3 {[%emt 0:01:10]} Ke6 {[%emt 0:03:01]} 51. Rb5 {[%emt 0:01:23]} Ra2+ {[%emt 0:00:49]} 52. Kf3 {[%emt 0:00:28]} Rc2 {[%emt 0:00:37]} 53. a5 {[%emt 0:03:11]} Rc3+ {[%emt 0:00:09]} 54. Kf2 {[%emt 0:00:07]} Rc2+ {[%emt 0:00:03]} 55. Kg1 {[%emt 0:00:12]} Rc1+ {[%emt 0:00:14]} 56. Kh2 {[%emt 0:00:10]} Ra1 {[%emt 0:01:20]} 57. b4 {[%emt 0:00:50]} Ra4 {[%emt 0:00:28]} 58. Rb6+ {[%emt 0:03:30]} Kd5 {[%emt 0:00:01]} 59. a6 {[%emt 0:00:35]} Ke4 {[%emt 0:00:06]} 60. b5 {[%emt 0:00:14]} Kxf4 {[%emt 0:00:08]} 61. Rxf6 {[%emt 0:00:38]} Ra5 {[%emt 0:00:50]} 62. Rf8 {[%emt 0:00:25]} Ke5 {[%emt 0:04:32]} 63. b6 {[%emt 0:00:35]} Rxa6 {[%emt 0:00:45]} 64. b7 {[%emt 0:00:08]} 1-0

[Event "Najdorf Memorial-A 2022"]
[Site "Warsaw"]
[Date "2022.07.15"]
[Round "7.10"]
[White "Kazmierowski, Tymon"]
[Black "Musial, Tomasz"]
[Result "0-1"]
[ECO "A40"]
[WhiteElo "1961"]
[BlackElo "2131"]
[Annotator "ChessBase"]
[PlyCount "146"]
[EventDate "2022.07.09"]
[EventType "swiss"]
[EventCountry "POL"]
[SourceTitle "playchess.com"]
[Source "ChessBase"]
[SourceQuality "1"]
[TimeControl "40/5400+30:1800+30"]

1. d4 {[%emt 0:00:02]} e6 {[%emt 0:00:10]} 2. c4 {[%emt 0:00:06]} Nf6 {[%emt 0:00:17]} 3. g3 {[%emt 0:00:16]} Bb4+ {[%emt 0:00:34]} 4. Nd2 {[%emt 0:00:16]} d5 {[%emt 0:00:27]} 5. Bg2 {[%emt 0:00:20]} O-O {[%emt 0:00:10]} 6. Ngf3 {[%emt 0:00:07]} b6 {[%emt 0:00:07]} 7. cxd5 {[%emt 0:00:21]} exd5 {[%emt 0:00:30]} 8. O-O {[%emt 0:00:09]} Bb7 {[%emt 0:00:26]} 9. a3 {[%emt 0:00:29]} Bd6 {[%emt 0:05:02]} 10. b3 {[%emt 0:05:12]} Nbd7 {[%emt 0:03:28]} 11. Bb2 {[%emt 0:00:48]} Re8 {[%emt 0:00:22]} 12. Re1 {[%emt 0:01:15]} Ne4 {[%emt 0:11:06]} 13. Nxe4 {[%emt 0:01:43]} dxe4 {[%emt 0:00:08]} 14. Nd2 {[%emt 0:00:37]} Nf6 {[%emt 0:01:44]} 15. Nc4 {[%emt 0:04:35]} Nd5 {[%emt 0:02:23]} 16. Qc2 {[%emt 0:12:28]} Qe7 {[%emt 0:06:43]} 17. Ne5 {[%emt 0:13:37]} f6 {[%emt 0:09:43]} 18. Nc6 {[%emt 0:00:59]} Qd7 {[%emt 0:02:29]} 19. Rac1 {[%emt 0:00:43]} Bf8 {[%emt 0:09:46]} 20. e3 {[%emt 0:14:01]} a5 {[%emt 0:12:46]} 21. Bf1 {[%emt 0:03:06]} Re6 {[%emt 0:07:06]} 22. Bb5 {[%emt 0:01:07]} Qf7 {[%emt 0:08:15]} 23. Qc4 {[%emt 0:21:05]} Qh5 {[%emt 0:06:33]} 24. Qe2 {[%emt 0:03:47]} Qxe2 {[%emt 0:00:17]} 25. Rxe2 {[%emt 0:00:05]} Ba6 {[%emt 0:01:47]} 26. Bxa6 {[%emt 0:03:29]} Rxa6 {[%emt 0:00:05]} 27. Rec2 {[%emt 0:03:18]} Ra8 {[%emt 0:01:08]} 28. Kf1 {[%emt 0:01:03]} Kf7 {[%emt 0:00:44]} 29. Ke2 {[%emt 0:01:31]} Ke8 {[%emt 0:00:47]} 30. Kd1 {[%emt 0:03:25]} Kd7 {[%emt 0:00:49]} 31. g4 {[%emt 0:01:42]} g5 {[%emt 0:03:18]} 32. Ke2 {[%emt 0:01:40]} Bd6 {[%emt 0:00:53]} 33. h3 {[%emt 0:00:49]} Kc8 {[%emt 0:03:19]} 34. b4 {[%emt 0:02:12]} axb4 {[%emt 0:00:17]} 35. axb4 {[%emt 0:00:01]} Ra2 {[%emt 0:02:55]} 36. b5 {[%emt 0:00:21]} Re8 {[%emt 0:00:56]} 37. Kd2 {[%emt 0:01:36]} Kd7 {[%emt 0:00:38]} 38. Bc3 {[%emt 0:00:23]} Rxc2+ {[%emt 0:00:35]} 39. Rxc2 {[%emt 0:00:06]} Ra8 {[%emt 0:00:07]} 40. Ke2 {[%emt 0:00:00]} Ra3 {[%emt 0:00:00]} 41. Bd2 {[%emt 0:01:43]} Rb3 {[%emt 0:06:47]} 42. Na7 {[%emt 0:00:46]} Rb1 {[%emt 0:02:58]} 43. Rc1 {[%emt 0:06:47]} Rb2 {[%emt 0:01:17]} 44. Kd1 {[%emt 0:00:48]} Nb4 {[%emt 0:05:42]} 45. Bxb4 {[%emt 0:01:35]} Bxb4 {[%emt 0:00:17]} 46. Rc2 {[%emt 0:00:04]} Rb1+ {[%emt 0:01:45]} 47. Rc1 {[%emt 0:00:04]} Rxc1+ {[%emt 0:01:21]} 48. Kxc1 {[%emt 0:00:02]} Be1 {[%emt 0:00:07]} 49. Nc6 {[%emt 0:00:02]} Bxf2 {[%emt 0:01:35]} 50. Kd2 {[%emt 0:00:03]} Ke6 {[%emt 0:00:52]} 51. Nb4 {[%emt 0:01:25]} Bg3 {[%emt 0:01:38]} 52. Na2 {[%emt 0:00:51]} f5 {[%emt 0:02:54]} 53. gxf5+ {[%emt 0:00:25]} Kxf5 {[%emt 0:00:10]} 54. Ke2 {[%emt 0:00:29]} h5 {[%emt 0:01:42]} 55. Nc3 {[%emt 0:02:03]} h4 {[%emt 0:02:15]} 56. Kf1 {[%emt 0:00:46]} g4 {[%emt 0:02:01]} 57. Kg2 {[%emt 0:00:38]} Bd6 {[%emt 0:01:21]} 58. hxg4+ {[%emt 0:00:41]} Kxg4 {[%emt 0:00:06]} 59. Nxe4 {[%emt 0:00:13]} h3+ {[%emt 0:00:05]} 60. Kg1 {[%emt 0:01:02]} Kf3 {[%emt 0:00:33]} 61. Ng5+ {[%emt 0:00:17]} Kxe3 {[%emt 0:00:11]} 62. Nxh3 {[%emt 0:00:12]} Kxd4 {[%emt 0:00:14]} 63. Kf2 {[%emt 0:00:06]} Kc4 {[%emt 0:00:14]} 64. Ke3 {[%emt 0:00:17]} Kxb5 {[%emt 0:00:16]} 65. Kd3 {[%emt 0:00:17]} c5 {[%emt 0:00:34]} 66. Nf2 {[%emt 0:00:18]} c4+ {[%emt 0:00:33]} 67. Kc2 {[%emt 0:00:29]} Kc5 {[%emt 0:00:59]} 68. Ne4+ {[%emt 0:00:11]} Kd5 {[%emt 0:00:07]} 69. Nd2 {[%emt 0:00:54]} b5 {[%emt 0:00:12]} 70. Kb2 {[%emt 0:00:35]} b4 {[%emt 0:00:19]} 71. Kc2 {[%emt 0:00:03]} Bf4 {[%emt 0:00:24]} 72. Nb1 {[%emt 0:01:14]} Kd4 {[%emt 0:00:22]} 73. Kb2 {[%emt 0:00:22]} Kd3 {[%emt 0:00:07]} 0-1